[Event "Early-Titled-Tuesday-Blitz-January-30-2024"]
[Site "Chess.com"]
[Date "2024.01.30"]
[Round "3"]
[White "NikolaGry"]
[Black "secretsuperstar7"]
[Result "1-0"]
[WhiteElo "2734"]
[BlackElo "2506"]
[TimeControl "180+1"]
[EndTime "8:31:25 PST"]
[Termination "NikolaGry won by resignation"]

1. b3 {[%clk 0:03:00.9]} 1... e5 {[%clk 0:02:55.3]} 2. Bb2 {[%clk 0:03:00.4]}
2... Nc6 {[%clk 0:02:55]} 3. c4 {[%clk 0:03:00.5]} 3... Nf6 {[%clk 0:02:53.8]}
4. e3 {[%clk 0:03:00.4]} 4... d5 {[%clk 0:02:52.7]} 5. cxd5 {[%clk 0:03:00.6]}
5... Nxd5 {[%clk 0:02:52.6]} 6. a3 {[%clk 0:03:01.2]} 6... Bd6 {[%clk 0:02:50]}
7. d3 {[%clk 0:03:01.4]} 7... O-O {[%clk 0:02:49.7]} 8. Nf3 {[%clk 0:03:01.9]}
8... Bg4 {[%clk 0:02:47.2]} 9. Be2 {[%clk 0:03:01.8]} 9... a5 {[%clk 0:02:45.7]}
10. Nbd2 {[%clk 0:03:01.3]} 10... Qe7 {[%clk 0:02:33.9]} 11. O-O {[%clk
0:03:00.2]} 11... Bc5 {[%clk 0:02:28.1]} 12. Nc4 {[%clk 0:02:39.4]} 12... f6
{[%clk 0:02:19.8]} 13. Nfxe5 {[%clk 0:02:31]} 13... fxe5 {[%clk 0:01:46]} 14.
Bxg4 {[%clk 0:02:29.2]} 14... b5 {[%clk 0:01:46.3]} 15. Bf3 {[%clk 0:02:14.6]}
15... Rad8 {[%clk 0:01:40.8]} 16. Nd2 {[%clk 0:02:00.9]} 16... Nxe3 {[%clk
0:01:39.6]} 17. fxe3 {[%clk 0:01:59.6]} 17... Bxe3+ {[%clk 0:01:40.3]} 18. Kh1
{[%clk 0:01:56.5]} 18... Rxd3 {[%clk 0:01:40.3]} 19. Qe2 {[%clk 0:01:41.5]}
19... Rxd2 {[%clk 0:00:58.8]} 20. Qxe3 {[%clk 0:01:39.5]} 20... Rxb2 {[%clk
0:00:56.1]} 21. Bd5+ {[%clk 0:01:32.3]} 21... Kh8 {[%clk 0:00:54.7]} 22. Bxc6
{[%clk 0:01:30.3]} 22... Qxa3 {[%clk 0:00:53.9]} 23. Rxf8+ {[%clk 0:01:03.9]}
23... Qxf8 {[%clk 0:00:52.8]} 24. Bxb5 {[%clk 0:00:59.4]} 24... Qa8 {[%clk
0:00:46.1]} 25. Bf1 {[%clk 0:00:53.4]} 25... Qd5 {[%clk 0:00:39.1]} 26. Qc3
{[%clk 0:00:40.5]} 26... Rxb3 {[%clk 0:00:20.2]} 27. Qxc7 {[%clk 0:00:38.8]}
27... h6 {[%clk 0:00:18.9]} 28. Qxa5 {[%clk 0:00:36.5]} 28... Qd4 {[%clk
0:00:15.3]} 29. Qe1 {[%clk 0:00:27.9]} 29... Re3 {[%clk 0:00:14.1]} 30. Qd1
{[%clk 0:00:26.6]} 30... Qf4 {[%clk 0:00:12.9]} 31. h3 {[%clk 0:00:22.8]} 31...
e4 {[%clk 0:00:12.8]} 32. Qc2 {[%clk 0:00:17.7]} 32... Qg3 {[%clk 0:00:10.2]}
33. Qc8+ {[%clk 0:00:15.5]} 33... Kh7 {[%clk 0:00:09.3]} 34. Qf5+ {[%clk
0:00:15.4]} 34... Qg6 {[%clk 0:00:06.4]} 35. Qxg6+ {[%clk 0:00:15.5]} 35... Kxg6
{[%clk 0:00:07.3]} 36. Kg1 {[%clk 0:00:15.4]} 36... Rc3 {[%clk 0:00:06.6]} 37.
Ra5 {[%clk 0:00:14.7]} 37... e3 {[%clk 0:00:05.4]} 38. Re5 {[%clk 0:00:14.2]}
38... Kf6 {[%clk 0:00:05.2]} 39. Re8 {[%clk 0:00:13.2]} 39... Kf5 {[%clk
0:00:04.8]} 40. Be2 {[%clk 0:00:12.2]} 40... Kf4 {[%clk 0:00:04.4]} 41. Bf3
{[%clk 0:00:11.7]} 41... Kg3 {[%clk 0:00:03.6]} 42. Kf1 {[%clk 0:00:10.8]} 42...
Rc1+ {[%clk 0:00:02.4]} 43. Ke2 {[%clk 0:00:10.8]} 43... Rc3 {[%clk 0:00:02.4]}
44. Rxe3 {[%clk 0:00:10.3]} 44... Rc2+ {[%clk 0:00:02.5]} 45. Kd3 {[%clk
0:00:10.4]} 45... Rc7 {[%clk 0:00:02.5]} 46. Ke4 {[%clk 0:00:09.7]} 46... Re7+
{[%clk 0:00:02.4]} 47. Kd4 {[%clk 0:00:10]} 47... Rd7+ {[%clk 0:00:02.8]} 48.
Kc5 {[%clk 0:00:10]} 48... Rc7+ {[%clk 0:00:02.7]} 49. Kd6 {[%clk 0:00:09.9]}
49... Rc1 {[%clk 0:00:02.8]} 50. Re6 {[%clk 0:00:09.8]} 50... g5 {[%clk
0:00:01.5]} 51. Rxh6 {[%clk 0:00:08.6]} 51... Kf4 {[%clk 0:00:01.5]} 52. Rf6+
{[%clk 0:00:07.8]} 52... Kg3 {[%clk 0:00:01.4]} 53. Ke6 {[%clk 0:00:08.1]} 53...
Re1+ {[%clk 0:00:01.3]} 54. Kf5 {[%clk 0:00:08]} 54... Re3 {[%clk 0:00:01.2]}
55. Kxg5 {[%clk 0:00:07.9]} 55... Re5+ {[%clk 0:00:01.4]} 56. Rf5 {[%clk
0:00:08.1]} 56... Re6 {[%clk 0:00:01.5]} 57. h4 {[%clk 0:00:07.8]} 57... Re8
{[%clk 0:00:01.8]} 58. h5 {[%clk 0:00:08.1]} 58... Rg8+ {[%clk 0:00:02.1]} 59.
Kf6 {[%clk 0:00:08.4]} 59... Rf8+ {[%clk 0:00:02.6]} 60. Kg6 {[%clk 0:00:08.4]}
60... Rg8+ {[%clk 0:00:03]} 61. Kh7 {[%clk 0:00:08.4]} 1-0

[Event "Early-Titled-Tuesday-Blitz-January-30-2024"]
[Site "Chess.com"]
[Date "2024.01.30"]
[Round "3"]
[White "Alexei_Gubajdullin"]
[Black "JimDiGrease"]
[Result "1/2-1/2"]
[WhiteElo "2630"]
[BlackElo "2935"]
[TimeControl "180+1"]
[EndTime "8:31:26 PST"]
[Termination "Game drawn by repetition"]

1. Nf3 {[%clk 0:02:58.9]} 1... d5 {[%clk 0:03:00]} 2. g3 {[%clk 0:02:58.9]} 2...
Nf6 {[%clk 0:03:00.5]} 3. Bg2 {[%clk 0:02:59]} 3... c5 {[%clk 0:03:00.8]} 4. O-O
{[%clk 0:02:58.8]} 4... e6 {[%clk 0:03:00.7]} 5. b3 {[%clk 0:02:55.7]} 5... Be7
{[%clk 0:03:00.4]} 6. Bb2 {[%clk 0:02:55.9]} 6... O-O {[%clk 0:03:00.8]} 7. e3
{[%clk 0:02:56.3]} 7... b5 {[%clk 0:03:00.1]} 8. Ne5 {[%clk 0:02:55]} 8... Bb7
{[%clk 0:02:58.6]} 9. f4 {[%clk 0:02:54.1]} 9... Nfd7 {[%clk 0:02:51.6]} 10. d3
{[%clk 0:02:52.4]} 10... Bf6 {[%clk 0:02:49]} 11. Nd2 {[%clk 0:02:51.3]} 11...
Qc7 {[%clk 0:02:27.8]} 12. Ndf3 {[%clk 0:02:49.9]} 12... h6 {[%clk 0:02:15.2]}
13. Qe1 {[%clk 0:02:45.5]} 13... Nc6 {[%clk 0:02:10]} 14. Nxd7 {[%clk
0:02:42.1]} 14... Qxd7 {[%clk 0:01:47.5]} 15. Bxf6 {[%clk 0:02:41.2]} 15... gxf6
{[%clk 0:01:48.4]} 16. g4 {[%clk 0:02:37.2]} 16... Kg7 {[%clk 0:01:47.6]} 17.
Qh4 {[%clk 0:02:36.2]} 17... Rh8 {[%clk 0:01:43.1]} 18. Qg3 {[%clk 0:02:30.3]}
18... Rag8 {[%clk 0:01:40.7]} 19. Rad1 {[%clk 0:02:22.7]} 19... Kf8 {[%clk
0:01:38.7]} 20. e4 {[%clk 0:02:17.4]} 20... Ne7 {[%clk 0:01:38.8]} 21. Qh4
{[%clk 0:02:14.3]} 21... Kg7 {[%clk 0:01:17.2]} 22. e5 {[%clk 0:02:07.7]} 22...
f5 {[%clk 0:01:17.6]} 23. Qf6+ {[%clk 0:01:58.4]} 23... Kf8 {[%clk 0:01:17.8]}
24. g5 {[%clk 0:01:44.8]} 24... d4 {[%clk 0:00:59.4]} 25. gxh6 {[%clk
0:01:40.7]} 25... Nd5 {[%clk 0:00:55.1]} 26. Qh4 {[%clk 0:01:40]} 26... Ne3
{[%clk 0:00:52.4]} 27. Rd2 {[%clk 0:01:29.7]} 27... Qe7 {[%clk 0:00:27.9]} 28.
Ng5 {[%clk 0:01:27.5]} 28... Bxg2 {[%clk 0:00:26.5]} 29. Rxg2 {[%clk 0:01:27]}
29... Nxg2 {[%clk 0:00:25.5]} 30. Kxg2 {[%clk 0:01:26.9]} 30... Rg6 {[%clk
0:00:24]} 31. h7 {[%clk 0:01:26.8]} 31... Kg7 {[%clk 0:00:21.8]} 32. Kf2 {[%clk
0:01:19.5]} 32... Rxg5 {[%clk 0:00:21.8]} 33. Qxg5+ {[%clk 0:01:12.4]} 33...
Qxg5 {[%clk 0:00:21.9]} 34. fxg5 {[%clk 0:01:12.7]} 34... Rxh7 {[%clk
0:00:22.8]} 35. Kg3 {[%clk 0:01:13.3]} 35... Kg6 {[%clk 0:00:22.2]} 36. h4
{[%clk 0:01:13.2]} 36... Rh8 {[%clk 0:00:22]} 37. Rc1 {[%clk 0:01:04.2]} 37...
Rd8 {[%clk 0:00:19.8]} 38. Rh1 {[%clk 0:00:54.8]} 38... Kh5 {[%clk 0:00:18.3]}
39. Rb1 {[%clk 0:00:49.8]} 39... Rc8 {[%clk 0:00:18.2]} 40. a4 {[%clk 0:00:46]}
40... a6 {[%clk 0:00:11.5]} 41. axb5 {[%clk 0:00:45.2]} 41... axb5 {[%clk
0:00:12.4]} 42. Ra1 {[%clk 0:00:46]} 42... Rc7 {[%clk 0:00:12.5]} 43. Ra5 {[%clk
0:00:44.9]} 43... c4 {[%clk 0:00:12.5]} 44. bxc4 {[%clk 0:00:26.8]} 44... bxc4
{[%clk 0:00:12.6]} 45. Ra4 {[%clk 0:00:27.3]} 45... cxd3 {[%clk 0:00:11]} 46.
cxd3 {[%clk 0:00:27.3]} 46... Rc1 {[%clk 0:00:10.8]} 47. Rxd4 {[%clk 0:00:26.4]}
47... Rg1+ {[%clk 0:00:10.3]} 48. Kf2 {[%clk 0:00:25.3]} 48... Rg4 {[%clk
0:00:07.6]} 49. Rd7 {[%clk 0:00:24.2]} 49... Kg6 {[%clk 0:00:07.6]} 50. h5+
{[%clk 0:00:23]} 50... Kxh5 {[%clk 0:00:02.6]} 51. Rxf7 {[%clk 0:00:22.7]} 51...
Rxg5 {[%clk 0:00:03]} 52. Rf6 {[%clk 0:00:22.5]} 52... Rg6 {[%clk 0:00:03.4]}
53. Rxg6 {[%clk 0:00:20.2]} 53... Kxg6 {[%clk 0:00:04.3]} 54. d4 {[%clk
0:00:16.2]} 54... f4 {[%clk 0:00:03.9]} 55. Kg2 {[%clk 0:00:13.3]} 55... Kg5
{[%clk 0:00:04.1]} 56. Kf2 {[%clk 0:00:12.6]} 56... Kf5 {[%clk 0:00:02.5]} 57.
Kf3 {[%clk 0:00:12.7]} 57... Kg5 {[%clk 0:00:03.1]} 58. Kf2 {[%clk 0:00:12.6]}
58... Kh5 {[%clk 0:00:02.3]} 59. Kf3 {[%clk 0:00:11.9]} 59... Kg5 {[%clk
0:00:03]} 60. Kf2 {[%clk 0:00:12.1]} 1/2-1/2

[Event "Early-Titled-Tuesday-Blitz-January-30-2024"]
[Site "Chess.com"]
[Date "2024.01.30"]
[Round "3"]
[White "LiadCuba"]
[Black "Dinosaurio_1975"]
[Result "1-0"]
[WhiteElo "2451"]
[BlackElo "2594"]
[TimeControl "180+1"]
[EndTime "8:31:26 PST"]
[Termination "LiadCuba won by resignation"]

1. d4 {[%clk 0:03:00.9]} 1... d5 {[%clk 0:02:56.3]} 2. c4 {[%clk 0:03:00.8]}
2... e6 {[%clk 0:02:54.8]} 3. Nc3 {[%clk 0:03:00.7]} 3... Nf6 {[%clk 0:02:54.7]}
4. Bg5 {[%clk 0:03:00.8]} 4... dxc4 {[%clk 0:02:54.4]} 5. e4 {[%clk 0:02:55.5]}
5... b5 {[%clk 0:02:54]} 6. e5 {[%clk 0:02:50.9]} 6... h6 {[%clk 0:02:53.4]} 7.
Bh4 {[%clk 0:02:47.6]} 7... g5 {[%clk 0:02:53.2]} 8. Bg3 {[%clk 0:02:48]} 8...
Nd5 {[%clk 0:02:52.9]} 9. h4 {[%clk 0:02:28.5]} 9... Bb4 {[%clk 0:02:47.8]} 10.
Rc1 {[%clk 0:02:27.8]} 10... c5 {[%clk 0:02:35.5]} 11. Ne2 {[%clk 0:02:19.8]}
11... Nc6 {[%clk 0:02:31.6]} 12. hxg5 {[%clk 0:02:04.9]} 12... Qxg5 {[%clk
0:02:03.8]} 13. dxc5 {[%clk 0:02:04.8]} 13... Bb7 {[%clk 0:01:57.1]} 14. f4
{[%clk 0:01:32]} 14... Qg6 {[%clk 0:01:40.8]} 15. a3 {[%clk 0:01:26.5]} 15...
Bxc5 {[%clk 0:01:32.9]} 16. Nxd5 {[%clk 0:01:20.7]} 16... O-O-O {[%clk
0:01:16.9]} 17. Qc2 {[%clk 0:01:20.4]} 17... exd5 {[%clk 0:01:07.9]} 18. Qxg6
{[%clk 0:01:19.7]} 18... fxg6 {[%clk 0:01:08.8]} 19. Nc3 {[%clk 0:01:10.7]}
19... a6 {[%clk 0:01:02.5]} 20. Bh4 {[%clk 0:01:00.9]} 20... Be7 {[%clk
0:01:01.6]} 21. Rd1 {[%clk 0:00:57]} 21... Bxh4+ {[%clk 0:00:56.4]} 22. Rxh4
{[%clk 0:00:57.9]} 22... Ne7 {[%clk 0:00:56]} 23. Ne2 {[%clk 0:00:54.2]} 23...
Nf5 {[%clk 0:00:43.1]} 24. Rh3 {[%clk 0:00:54.3]} 24... d4 {[%clk 0:00:42.9]}
25. g4 {[%clk 0:00:52.1]} 25... Ne3 {[%clk 0:00:40.9]} 26. Rxd4 {[%clk
0:00:50.3]} 26... Rxd4 {[%clk 0:00:38.9]} 27. Nxd4 {[%clk 0:00:51.2]} 27... Nxg4
{[%clk 0:00:38.2]} 28. Rg3 {[%clk 0:00:44.3]} 28... h5 {[%clk 0:00:36.8]} 29.
Bh3 {[%clk 0:00:44.2]} 29... Rd8 {[%clk 0:00:33.9]} 30. Ne6 {[%clk 0:00:40]}
30... Re8 {[%clk 0:00:22.8]} 31. Nc5 {[%clk 0:00:32.7]} 31... g5 {[%clk
0:00:22.1]} 32. Bxg4+ {[%clk 0:00:22.1]} 32... hxg4 {[%clk 0:00:21.8]} 33. Rxg4
{[%clk 0:00:23]} 33... gxf4 {[%clk 0:00:22.3]} 34. Rg5 {[%clk 0:00:20]} 34...
Bc6 {[%clk 0:00:10.7]} 35. Kd2 {[%clk 0:00:17.6]} 35... Rd8+ {[%clk 0:00:10.1]}
36. Kc3 {[%clk 0:00:17.7]} 36... f3 {[%clk 0:00:10.4]} 37. Rf5 {[%clk
0:00:17.1]} 37... Kc7 {[%clk 0:00:08.7]} 38. Ne6+ {[%clk 0:00:17.5]} 38... Kd7
{[%clk 0:00:09]} 39. Nxd8 {[%clk 0:00:18.4]} 39... Kxd8 {[%clk 0:00:09.9]} 40.
Kd4 {[%clk 0:00:17.7]} 40... Ke7 {[%clk 0:00:09.1]} 41. Rf6 {[%clk 0:00:17.7]}
41... Kd7 {[%clk 0:00:08.2]} 42. Kc5 {[%clk 0:00:17.8]} 42... Be4 {[%clk
0:00:06.2]} 43. Rf4 {[%clk 0:00:17.6]} 43... Ba8 {[%clk 0:00:03.2]} 44. Rf6
{[%clk 0:00:15.1]} 44... Be4 {[%clk 0:00:02.9]} 45. Kd4 {[%clk 0:00:14.6]} 45...
Bb7 {[%clk 0:00:02.3]} 46. Rd6+ {[%clk 0:00:12.7]} 46... Kc7 {[%clk 0:00:01.9]}
47. Rf6 {[%clk 0:00:13.1]} 47... Kd7 {[%clk 0:00:02.1]} 48. Rf7+ {[%clk
0:00:13.2]} 48... Kc6 {[%clk 0:00:02.4]} 49. Rxf3 {[%clk 0:00:12.7]} 49... Kb6
{[%clk 0:00:02.4]} 50. Rf6+ {[%clk 0:00:13.6]} 50... Ka5 {[%clk 0:00:01.6]} 51.
Kc5 {[%clk 0:00:13.9]} 51... Ka4 {[%clk 0:00:01.8]} 52. Rb6 {[%clk 0:00:14.3]}
52... Bc8 {[%clk 0:00:01.9]} 53. e6 {[%clk 0:00:14.1]} 53... Kb3 {[%clk
0:00:01.8]} 54. e7 {[%clk 0:00:14.2]} 54... Bd7 {[%clk 0:00:02.4]} 55. Rd6
{[%clk 0:00:14.4]} 55... Be8 {[%clk 0:00:02.5]} 56. Rd2 {[%clk 0:00:14.1]} 56...
a5 {[%clk 0:00:01.6]} 57. Rf2 {[%clk 0:00:13.8]} 57... b4 {[%clk 0:00:01.7]} 58.
axb4 {[%clk 0:00:14.7]} 58... axb4 {[%clk 0:00:02.4]} 59. Kd4 {[%clk 0:00:11]}
59... c3 {[%clk 0:00:01.9]} 60. bxc3 {[%clk 0:00:11.9]} 60... bxc3 {[%clk
0:00:02.8]} 61. Rf3 {[%clk 0:00:12.2]} 61... Kb4 {[%clk 0:00:03.1]} 62. Rxc3
{[%clk 0:00:13.1]} 62... Kb5 {[%clk 0:00:03.6]} 63. Rc8 {[%clk 0:00:13.4]} 63...
Bd7 {[%clk 0:00:03.6]} 64. e8=Q {[%clk 0:00:14.3]} 64... Bxe8 {[%clk 0:00:03.9]}
65. Rxe8 {[%clk 0:00:15.2]} 1-0

[Event "Early-Titled-Tuesday-Blitz-January-30-2024"]
[Site "Chess.com"]
[Date "2024.01.30"]
[Round "3"]
[White "KVAIDAN"]
[Black "MikaelyanArman"]
[Result "0-1"]
[WhiteElo "2354"]
[BlackElo "2834"]
[TimeControl "180+1"]
[EndTime "8:31:28 PST"]
[Termination "MikaelyanArman won on time"]

1. f4 {[%clk 0:03:00.9]} 1... c5 {[%clk 0:02:58]} 2. Nf3 {[%clk 0:03:00.4]} 2...
g6 {[%clk 0:02:56.8]} 3. d3 {[%clk 0:02:52]} 3... Bg7 {[%clk 0:02:56.9]} 4. e4
{[%clk 0:02:51.5]} 4... d6 {[%clk 0:02:57.4]} 5. Nc3 {[%clk 0:02:50.4]} 5... Nc6
{[%clk 0:02:57.1]} 6. Be2 {[%clk 0:02:46.1]} 6... Rb8 {[%clk 0:02:52.2]} 7. a4
{[%clk 0:02:38]} 7... a6 {[%clk 0:02:43.1]} 8. O-O {[%clk 0:02:35.8]} 8... b5
{[%clk 0:02:43.2]} 9. axb5 {[%clk 0:02:35.1]} 9... axb5 {[%clk 0:02:44.1]} 10.
Qe1 {[%clk 0:02:34.4]} 10... b4 {[%clk 0:02:41.3]} 11. Nd1 {[%clk 0:02:30.4]}
11... Bb7 {[%clk 0:02:30.1]} 12. Ne3 {[%clk 0:02:29.6]} 12... Ra8 {[%clk
0:02:23.5]} 13. Rxa8 {[%clk 0:02:25.6]} 13... Qxa8 {[%clk 0:02:24.4]} 14. Qg3
{[%clk 0:02:24.6]} 14... Nf6 {[%clk 0:02:15.1]} 15. e5 {[%clk 0:02:15.1]} 15...
Nh5 {[%clk 0:02:10.3]} 16. Qh4 {[%clk 0:02:14.8]} 16... dxe5 {[%clk 0:02:08.1]}
17. Nd5 {[%clk 0:02:12.3]} 17... Qd8 {[%clk 0:02:00.8]} 18. c4 {[%clk
0:02:01.4]} 18... bxc3 {[%clk 0:01:57.1]} 19. Nxc3 {[%clk 0:02:01.5]} 19... exf4
{[%clk 0:01:47.4]} 20. Ng5 {[%clk 0:01:54.4]} 20... Bd4+ {[%clk 0:01:18.7]} 21.
Kh1 {[%clk 0:01:53.1]} 21... Ng7 {[%clk 0:00:50.8]} 22. Qxf4 {[%clk 0:01:44.2]}
22... Nf5 {[%clk 0:00:44.9]} 23. Nb5 {[%clk 0:01:36.6]} 23... Be5 {[%clk
0:00:38.2]} 24. Qf2 {[%clk 0:01:33.7]} 24... O-O {[%clk 0:00:36.1]} 25. Qxc5
{[%clk 0:01:27.3]} 25... Bg7 {[%clk 0:00:26.6]} 26. Ne4 {[%clk 0:01:03.9]} 26...
Ncd4 {[%clk 0:00:23.5]} 27. Nxd4 {[%clk 0:01:00.6]} 27... Nxd4 {[%clk
0:00:24.4]} 28. Bd1 {[%clk 0:00:59.9]} 28... Qd5 {[%clk 0:00:20.4]} 29. Qxd5
{[%clk 0:00:33.6]} 29... Bxd5 {[%clk 0:00:21.3]} 30. b4 {[%clk 0:00:30.2]} 30...
Rb8 {[%clk 0:00:19.6]} 31. Bd2 {[%clk 0:00:29.2]} 31... Nc6 {[%clk 0:00:17.7]}
32. Nc3 {[%clk 0:00:25.7]} 32... Nxb4 {[%clk 0:00:13.4]} 33. Nxd5 {[%clk
0:00:22.2]} 33... Nxd5 {[%clk 0:00:14.3]} 34. Bf3 {[%clk 0:00:20.4]} 34... e6
{[%clk 0:00:14.8]} 35. h3 {[%clk 0:00:20.7]} 35... h5 {[%clk 0:00:14.7]} 36. Rc1
{[%clk 0:00:18.5]} 36... Rb2 {[%clk 0:00:13.6]} 37. Rc8+ {[%clk 0:00:16.1]}
37... Kh7 {[%clk 0:00:14.1]} 38. Bg5 {[%clk 0:00:15.5]} 38... Rb1+ {[%clk
0:00:12.4]} 39. Kh2 {[%clk 0:00:15.3]} 39... Be5+ {[%clk 0:00:13]} 40. g3 {[%clk
0:00:15.6]} 40... Rb2+ {[%clk 0:00:13.2]} 41. Kg1 {[%clk 0:00:15.8]} 41... Kg7
{[%clk 0:00:11.3]} 42. Bh4 {[%clk 0:00:14.1]} 42... Bd4+ {[%clk 0:00:09.9]} 43.
Kh1 {[%clk 0:00:13.3]} 43... Rb1+ {[%clk 0:00:10]} 44. Kg2 {[%clk 0:00:13.1]}
44... Ne3+ {[%clk 0:00:09.4]} 45. Kh2 {[%clk 0:00:13.4]} 45... Nf5 {[%clk
0:00:08.1]} 46. Rc4 {[%clk 0:00:09.8]} 46... Rb2+ {[%clk 0:00:07.1]} 47. Kh1
{[%clk 0:00:09.4]} 47... Rb1+ {[%clk 0:00:07.7]} 48. Kh2 {[%clk 0:00:09.5]}
48... Bg1+ {[%clk 0:00:06.9]} 49. Kg2 {[%clk 0:00:09.4]} 49... Ne3+ {[%clk
0:00:06.9]} 50. Kh1 {[%clk 0:00:07.5]} 50... Bf2+ {[%clk 0:00:07.3]} 51. Kh2
{[%clk 0:00:06.7]} 51... Nxc4 {[%clk 0:00:07.9]} 52. dxc4 {[%clk 0:00:06]} 52...
Bd4 {[%clk 0:00:08.4]} 53. Bg5 {[%clk 0:00:04.4]} 53... Rb2+ {[%clk 0:00:08.2]}
54. Kh1 {[%clk 0:00:02.9]} 54... Rc2 {[%clk 0:00:08.4]} 55. Bf4 {[%clk
0:00:02.3]} 55... Rxc4 {[%clk 0:00:08.3]} 56. Be2 {[%clk 0:00:02.2]} 56... Rc3
{[%clk 0:00:08.8]} 57. Kg2 {[%clk 0:00:01.7]} 57... e5 {[%clk 0:00:09]} 58. Bg5
{[%clk 0:00:01.3]} 58... Rc2 {[%clk 0:00:09.3]} 59. Kf3 {[%clk 0:00:01.3]} 59...
f6 {[%clk 0:00:10]} 0-1

[Event "Early-Titled-Tuesday-Blitz-January-30-2024"]
[Site "Chess.com"]
[Date "2024.01.30"]
[Round "3"]
[White "BashirliSaadat"]
[Black "Horokoskii"]
[Result "0-1"]
[WhiteElo "2386"]
[BlackElo "2154"]
[TimeControl "180+1"]
[EndTime "8:31:29 PST"]
[Termination "Horokoskii won on time"]

1. e4 {[%clk 0:03:00.9]} 1... e6 {[%clk 0:02:23.8]} 2. d4 {[%clk 0:03:00]} 2...
d5 {[%clk 0:02:24.3]} 3. Nc3 {[%clk 0:02:59.9]} 3... Nf6 {[%clk 0:02:23.5]} 4.
Bg5 {[%clk 0:02:58.7]} 4... Be7 {[%clk 0:02:23.1]} 5. e5 {[%clk 0:02:57.6]} 5...
Nfd7 {[%clk 0:02:23.6]} 6. Bxe7 {[%clk 0:02:57.1]} 6... Qxe7 {[%clk 0:02:24.5]}
7. Nb5 {[%clk 0:02:56.6]} 7... Nb6 {[%clk 0:02:19.9]} 8. c3 {[%clk 0:02:55.5]}
8... a6 {[%clk 0:02:20]} 9. Na3 {[%clk 0:02:54]} 9... O-O {[%clk 0:02:19.7]} 10.
Bd3 {[%clk 0:02:51.9]} 10... f6 {[%clk 0:02:19]} 11. Nf3 {[%clk 0:02:49.7]}
11... c5 {[%clk 0:02:17.1]} 12. Nc2 {[%clk 0:02:46.3]} 12... cxd4 {[%clk
0:02:14.6]} 13. cxd4 {[%clk 0:02:45.3]} 13... Nc6 {[%clk 0:02:14.7]} 14. O-O
{[%clk 0:02:42.8]} 14... fxe5 {[%clk 0:02:13.9]} 15. Nxe5 {[%clk 0:02:40.3]}
15... Nd7 {[%clk 0:02:11.1]} 16. Nxc6 {[%clk 0:02:33.3]} 16... bxc6 {[%clk
0:02:09.9]} 17. Re1 {[%clk 0:02:32.2]} 17... c5 {[%clk 0:02:09.4]} 18. dxc5
{[%clk 0:02:26.4]} 18... Nxc5 {[%clk 0:02:08.4]} 19. Be2 {[%clk 0:02:15.4]}
19... Ne4 {[%clk 0:01:59.1]} 20. Bf3 {[%clk 0:02:13.1]} 20... Ng5 {[%clk
0:01:59.7]} 21. Bxd5 {[%clk 0:02:09.8]} 21... Rb8 {[%clk 0:01:52]} 22. Bb3
{[%clk 0:02:07.3]} 22... Qf6 {[%clk 0:01:41.2]} 23. Qd4 {[%clk 0:02:03.3]} 23...
Qg6 {[%clk 0:01:32.9]} 24. Kh1 {[%clk 0:01:56.5]} 24... Bb7 {[%clk 0:01:29.9]}
25. Ne3 {[%clk 0:01:10.6]} 25... Nf3 {[%clk 0:01:18.9]} 26. Qd6 {[%clk 0:01:09]}
26... Nxe1 {[%clk 0:01:13.9]} 27. Qxe6+ {[%clk 0:01:07.7]} 27... Qxe6 {[%clk
0:01:08.4]} 28. Bxe6+ {[%clk 0:01:07.7]} 28... Kh8 {[%clk 0:01:08.6]} 29. Rxe1
{[%clk 0:01:07.3]} 29... Rxf2 {[%clk 0:01:07.3]} 30. Kg1 {[%clk 0:00:47]} 30...
Rxb2 {[%clk 0:01:06]} 31. Bb3 {[%clk 0:00:45.4]} 31... g6 {[%clk 0:01:03.1]} 32.
Rd1 {[%clk 0:00:43.4]} 32... Re8 {[%clk 0:00:58.8]} 33. Rd3 {[%clk 0:00:37.7]}
33... Be4 {[%clk 0:00:51.7]} 34. Rc3 {[%clk 0:00:34.6]} 34... Rd8 {[%clk
0:00:46.1]} 35. h3 {[%clk 0:00:32.8]} 35... Bb7 {[%clk 0:00:38.2]} 36. Rc7
{[%clk 0:00:25.3]} 36... Be4 {[%clk 0:00:33.7]} 37. Re7 {[%clk 0:00:24.1]} 37...
Bc6 {[%clk 0:00:32.2]} 38. Kh2 {[%clk 0:00:22.7]} 38... Rdd2 {[%clk 0:00:23.9]}
39. Kg3 {[%clk 0:00:22.1]} 39... Bxg2 {[%clk 0:00:20.6]} 40. Kf4 {[%clk
0:00:19.6]} 40... Rf2+ {[%clk 0:00:19.5]} 41. Ke5 {[%clk 0:00:19]} 41... Bxh3
{[%clk 0:00:18.5]} 42. Re8+ {[%clk 0:00:18.1]} 42... Kg7 {[%clk 0:00:18.4]} 43.
Rg8+ {[%clk 0:00:16.9]} 43... Kh6 {[%clk 0:00:18.2]} 44. Bc4 {[%clk 0:00:14.5]}
44... Bf5 {[%clk 0:00:11.8]} 45. Rh8 {[%clk 0:00:09]} 45... Kg7 {[%clk
0:00:10.2]} 46. Rd8 {[%clk 0:00:08.8]} 46... Rb6 {[%clk 0:00:08.6]} 47. Nd5
{[%clk 0:00:05.2]} 47... Re6+ {[%clk 0:00:07.5]} 48. Kd4 {[%clk 0:00:05]} 48...
Re4+ {[%clk 0:00:06.6]} 49. Kc3 {[%clk 0:00:04]} 49... Rf3+ {[%clk 0:00:07.1]}
50. Kb4 {[%clk 0:00:02.7]} 50... Be6 {[%clk 0:00:07.3]} 51. Re8 {[%clk
0:00:00.4]} 51... Bxd5 {[%clk 0:00:06.5]} 0-1